{"text_format":"1","workbook":"xlsx","n_sheets":12,"sheets":["ÚVOD","STAVBA","REKAPITULACE","HSV - 1","HSV - 2","PSV - 1","PSV - 2","PSV - 3","M","VLASTNÍ CENA","Nápověda","List1"],"not_rendered":{"charts":0,"images":205,"macros":1,"external_links":0,"defined_names":0,"comments":0,"pivot_tables":0},"unopened":[],"bounds":{"document_bytes":16777216,"sheet_cells":100000,"rows_first":2000,"rows_last":500,"rows_between":2000,"halvings":0,"cell_chars":16384,"cell_head_chars":4096},"cells_cut":0,"cells_raw":0,"read":"whole","date_system":"1900"}

{"sheet":"ÚVOD","index":0,"n_rows":46,"n_cols":5,"rows_kept":46,"cut":false,"hidden":false,"merged":[[38,1,43,4],[45,1,48,4],[18,1,27,4],[29,1,36,4],[3,1,5,4],[7,1,7,4],[9,1,9,4],[10,1,10,4],[16,1,16,4]]}
[]
[null,"ÚVOD"]
[]
[null,"Vítejte v nástroji vytvořeném k ocenění novostaveb rodinných domů. Cena je pouze informační - propočtová. Než začnete pracovat, prosím, povolte užívání maker. Slouží pro správnou funkci nástroje."]
[]
[]
[]
[null,"Povolení maker: 1. Klikněte na kartu Soubor. 2. Klikněte na položku Možnosti. 3. Klikněte na položku Centrum zabezpečení a následně na Nastavení Centra zabezpečení. 4. Následně klikněte na položku Nastavení maker. 5. Zvolte možnost Povolení všech maker a potvrďte kliknutím na OK."]
[]
[null,"Cenová úroveň dat v nástroji je rok 2019 až 2021. Cenové ukazatele jsou vytvořené na základě rozpočtů reálných staveb rodinných domů."]
[null,"Cena vytvořená pomocí tohoto nástroje je pouze za objekt rodinného domu. Cena nezahrnuje náklady na zařízení interiéru, vestavěného nábytku, krby, komunikace, přípojky, areálové rozvody, oplocení a další vedlejší objekty, sadové úpravy a demolice. "]
[]
[]
[null,"Postupujte v nástroji po jednotlivých listech. "]
[null,"Upravovat nebo vyplňovat lze pouze žlutě podbarvení buňky. ",null,null,"Příklad "]
[null,"Ostatní buňky jsou uzamčeny. "]
[null,"V nástroji se lze pohybovat pomocí tlačítek, překlikáváním mezi jednotlivými listy v dolní části Excelu a kliknutím na modře zbarvený a podrtrhnutý text."]
[]
[null,"První list je STAVBA. Zde vyplňte údaje stavby, vstupní hodnoty stavby potřebné pro ocenění pomocí cenových ukazatelů. Na názvy vstupních hodnot, které jsou modře zabarvené a podtrhnuté, lze kliknout pro získání nápovědy. Dále v tomto listu vyberete z rozbalovacího seznamu sazbu DPH a doporučenou výši procenta pro výpočet nákladů na umístění stavby, kompletační činnosti a rezervy. Pokud Vám sazba DPH nebo doporučená výše jednotlivých procent nevyhovuje, vpište vlastní výši procenta do následujícího řádku. Pozor! Pokud bude vepsaná vlastní výše, bude přednostě brána do výpočtu. Pro výpočet pomocí procenta vybraného z rozevíracího seznamu vlastní hodnotu smažte."]
[]
[]
[]
[]
[]
[]
[]
[]
[]
[]
[null,"Následuje list REKAPITULACE. Jedná se o oficiální výstup nástroje. V úvodu jsou shrnuty údaje stavby. Následuje rekapitulace nákladů na stavební objekt po jednotlivých částech. List pokračuje výpočtem výše nákladů na umístění stavby, kompletační činnosti a rezervy. V poslední části je celková cena. Jedná se o součet nákladů na stavební objekt, nákladů na umístění stavby, kopletační činnost a rezervy. Tato celková cena je bez DPH. V poslední řadě je vypočtena Celková cena s DPH. "]
[]
[]
[]
[]
[]
[]
[]
[]
[null,"Další listy HSV - 1, HSV - 2, PSV - 1, PSV - 2, PSV - 3 a M jsou určeny pro výpočet cen jednotlivých částí. V horní části každého listu je rekapitulace daného listu. U názvů jednotlivých částí pomocí tlačítka vyberte, zda chcete část ocenit pomocí cenového ukazatele, nebo zadat vlastní celkovou cenu, anebo si přejete mít část bez ceny. Druhou možností výběru výpočtu ceny u každé části je z rozbalovacího seznamu."]
[]
[]
[]
[]
[]
[]
[null,"Poslední list je VLASTNÍ CENA. Do tohoto listu lze zadat celková vlastní cena za části, které nástroj zatím neobsahuje, ale jsou součástí objektu rodinného domu. Například cenu za povlakové podlahy, krby apod. "]

{"sheet":"STAVBA","index":1,"n_rows":54,"n_cols":5,"rows_kept":54,"cut":false,"hidden":false,"merged":[[4,2,4,3],[6,2,6,3],[8,2,8,3],[10,2,10,3],[38,2,38,3],[16,2,16,3],[18,2,18,3],[21,2,21,3],[23,2,23,3],[17,2,17,3],[19,2,19,3],[22,2,22,3],[24,2,24,3],[53,2,53,3],[25,2,25,3],[20,2,20,3],[45,2,45,3],[46,2,46,3],[52,2,52,3],[31,2,31,3],[32,2,32,3],[39,2,39,3]]}
[]
[null,"ÚDAJE STAVBY"]
[]
[]
[null,"Název stavby:","Praha - 6"]
[null,null,""]
[null,"Název objektu:","Rodinný dům"]
[null,null,""]
[null,"Datum:","2021-12-16"]
[null,null,""]
[null,"Zpracovatel:","Reblová"]
[null,null,""]
[null,null,""]
[null,"VSTUPNÍ HODNOTY STAVBY ",""]
[null,null,""]
[null,null,""]
[null,"Obestavěný prostor:",914,null,"m3"]
[null,"Zastavěná plocha všech podlaží:",252,null,"m2"]
[null,"Zastavěná plocha ploché střechy:",146,null,"m2"]
[null,"Zastavěná plocha šikmé střechy:",0,null,"m2"]
[null,"Plocha terasy:",0,null,"m2"]
[null,"Počet koupelen:",2,null,"ks"]
[null,"Počet vnitřních dveří:",10,null,"ks"]
[null,"Počet vstupních dveří:",2,null,"ks"]
[null,"Plocha vnějších výplní:",44.8,null,"m2"]
[null,"Počet garážových vrat:",1,null,"ks"]
[]
[]
[null,"SAZBA DPH"]
[]
[]
[null,"Sazba DPH pro výpočet:",21,null,"%"]
[null,"Vlastní sazba DPH:",null,null,"%"]
[]
[]
[null,"NÁKLADY NA UMÍSTĚNÍ STAVBY"]
[]
[]
[null,"Odhad doporučený:",5,null,"%"]
[null,"Vlastní:",null,null,"%"]
[]
[]
[null,"KOMPLETAČNÍ ČINNOST"]
[]
[]
[null,"Odhad doporučený:",0.8,null,"%"]
[null,"Vlastní:",null,null,"%"]
[]
[]
[null,"REZERVA"]
[]
[]
[null,"Odhad doporučený:",6.5,null,"%"]
[null,"Vlastní:",null,null,"%"]

{"sheet":"REKAPITULACE","index":2,"n_rows":93,"n_cols":4,"rows_kept":93,"cut":false,"hidden":false,"merged":[[4,2,4,3],[6,2,6,3],[8,2,8,3],[10,2,10,3]]}
[]
[null,"REKAPITULACE ÚDAJŮ STAVBY"]
[]
[]
[null,"Název stavby:",{"$f":"STAVBA!C5","v":"Praha - 6"}]
[]
[null,"Název objektu:",{"$f":"STAVBA!C7","v":"Rodinný dům"}]
[]
[null,"Datum:",{"$f":"STAVBA!C9","v":"2021-12-16"}]
[]
[null,"Zpracovatel:",{"$f":"STAVBA!C11","v":"Reblová"}]
[]
[]
[null,"REKAPITULACE NÁKLADŮ NA STAVEBNÍ OBJEKT"]
[]
[null,"NÁKLADY CELKEM:",{"$f":"C17+C27+C46+C55","v":8359242.9842813248},"Kč"]
[null,"CELKEM HSV:",{"$f":"SUM(C18:C26)","v":3784107.9947127793},"Kč"]
[null,"1 - ZEMNÍ PRÁCE:",{"$f":"'HSV - 1'!C6","v":0},"Kč"]
[null,"2 - ZÁKLADY:",{"$f":"'HSV - 1'!C7","v":478657.7340706666},"Kč"]
[null,"3 - SVISLÉ KONSTRUKCE:",{"$f":"'HSV - 1'!C8","v":802223.75728791312},"Kč"]
[null,"4 - VODOROVNÉ KONSTRUKCE:",{"$f":"'HSV - 1'!C9","v":733638.50470722956},"Kč"]
[null,"5 - SCHODIŠTĚ:",{"$f":"'HSV - 2'!C6","v":146466},"Kč"]
[null,"6 - VNITŘNÍ OMÍTKY:",{"$f":"'HSV - 2'!C7","v":218403},"Kč"]
[null,"7 - VNĚJŠÍ ÚPRAVA POVRCHŮ:",{"$f":"'HSV - 2'!C8","v":646535.99864697014},"Kč"]
[null,"8 - HRUBÁ PODLAHA:",{"$f":"'HSV - 2'!C9","v":201502},"Kč"]
[null,"9 - PŘESUN HMOT HSV:",{"$f":"'HSV - 2'!C10","v":556681},"Kč"]
[null,"CELKEM PSV:",{"$f":"SUM(C28:C45)","v":2732195.8225752157},"Kč"]
[null,"10 - IZOLACE PROTI VODĚ ZÁKLADŮ:",{"$f":"'PSV - 1'!C6","v":115322},"Kč"]
[null,"11 - PLOCHÁ STŘECHA:",{"$f":"'PSV - 1'!C7","v":906076},"Kč"]
[null,"12 - ŠIKMÁ STŘECHA:",{"$f":"'PSV - 1'!C8","v":0},"Kč"]
[null,"13 - SDK PODHLED PODKROVÍ ŠIKMÝCH STŘECH:",{"$f":"'PSV - 1'!C9","v":0},"Kč"]
[null,"14 - SDK PODHLED:",{"$f":"'PSV - 1'!C10","v":100828},"Kč"]
[null,"15 - DŘEVĚNÉ TERASY NA STŘECHÁCH:",{"$f":"'PSV - 2'!C6","v":0},"Kč"]
[null,"16 - VNĚJŠÍ VÝPLNĚ OTVORŮ:",{"$f":"'PSV - 2'!C7","v":650944},"Kč"]
[null,"17 - VNĚJŠÍ PŘEDOKENNÍ ŽALUZIE:",{"$f":"'PSV - 2'!C8","v":0},"Kč"]
[null,"18 - VSTUPNÍ DVEŘE:",{"$f":"'PSV - 2'!C9","v":233274},"Kč"]
[null,"19 - GARÁŽOVÁ VRATA:",{"$f":"'PSV - 2'!C10","v":50858},"Kč"]
[null,"20 - VNITŘNÍ VÝPLNĚ OTVORŮ:",{"$f":"'PSV - 2'!C11","v":205190},"Kč"]
[null,"21 - PODLAHY Z KERAMICKÉ DLAŽBY:",{"$f":"'PSV - 3'!C6","v":115588},"Kč"]
[null,"22 - PODLAHY DŘEVĚNÉ:",{"$f":"'PSV - 3'!C7","v":205564},"Kč"]
[null,"23 - PODLAHY LITÉ:",{"$f":"'PSV - 3'!C8","v":31115},"Kč"]
[null,"24 - KERAMICKÉ OBKLADY:",{"$f":"'PSV - 3'!C9","v":80681.822575215556},"Kč"]
[null,"25 - FASÁDNÍ CIHELNÝ OBKLAD:",{"$f":"'PSV - 3'!C10","v":0},"Kč"]
[null,"26 - OBKLAD ALUCOBOND:",{"$f":"'PSV - 3'!C11","v":0},"Kč"]
[null,"27 - MALBY",{"$f":"'PSV - 3'!C12","v":36755},"Kč"]
[null,"CELKEM M:",{"$f":"SUM(C47:C54)","v":1842939.1669933305},"Kč"]
[null,"28 - SILNOPROUD:",{"$f":"M!C6","v":308549},"Kč"]
[null,"29 - SLABOPROUD:",{"$f":"M!C7","v":273716},"Kč"]
[null,"30 - ZDRAVOTECHNICKÉ INSTALACE:",{"$f":"M!C8","v":93194},"Kč"]
[null,"31 - ZAŘIZOVACÍ PŘEDMĚTY ZTI:",{"$f":"M!C9","v":168520},"Kč"]
[null,"32 - ÚSTŘEDNÍ TOPENÍ:",{"$f":"M!C10","v":459357.16699333047},"Kč"]
[null,"33 - ROZVODY TOPENÍ A OTOPNÁ TĚLESA:",{"$f":"M!C11","v":268328},"Kč"]
[null,"34 - VZDUCHOTECHNIKA:",{"$f":"M!C12","v":53628},"Kč"]
[null,"35 - CHLAZENÍ:",{"$f":"M!C13","v":217647},"Kč"]
[null,"CELKOVÁ VLASTNÍ CENA ZA DALŠÍ ČÁSTI:",{"$f":"'VLASTNÍ CENA'!E11:E11","v":0},"Kč"]
[]
[null,"NÁKLADY NA UMÍSTĚNÍ STAVBY"]
[]
[]
[null,"Náklady na stavební objekt celkem:",{"$f":"C16","v":8359242.9842813248},"Kč"]
[null,"Odhad:",{"$f":"IF(STAVBA!C40=\"\",STAVBA!C39,STAVBA!C40)","v":5},"%"]
[null,"Výše odhadu:",{"$f":"C60*C61%","v":417962.14921406627},"Kč"]
[]
[]
[null,"KOMPLETAČNÍ ČINNOST"]
[]
[]
[null,"Náklady na stavební objekt celkem:",{"$f":"$C$16","v":8359242.9842813248},"Kč"]
[null,"Odhad:",{"$f":"IF(STAVBA!C47=\"\",STAVBA!C46,STAVBA!C47)","v":0.8},"%"]
[null,"Výše odhadu:",{"$f":"C68*C69%","v":66873.943874250603},"Kč"]
[]
[]
[null,"REZERVA"]
[]
[]
[null,"Náklady na stavební objekt celkem:",{"$f":"$C$16","v":8359242.9842813248},"Kč"]
[null,"Odhad:",{"$f":"IF(STAVBA!C54=\"\",STAVBA!C53,STAVBA!C54)","v":6.5},"%"]
[null,"Výše odhadu:",{"$f":"C76*C77%","v":543350.79397828609},"Kč"]
[]
[]
[null,"CELKEM CENA"]
[]
[]
[null,"Náklady na stavební objekt celkem:",{"$f":"$C$16","v":8359242.9842813248},"Kč"]
[null,"Náklady na umístění stavby:",{"$f":"C62","v":417962.14921406627},"Kč"]
[null,"Kompletační činnost:",{"$f":"C70","v":66873.943874250603},"Kč"]
[null,"Rezerva: ",{"$f":"C78","v":543350.79397828609},"Kč"]
[null,"CELKEM BEZ DPH:",{"$f":"SUM(C84:C87)","v":9387429.8713479284},"Kč"]
[]
[null,"Sazba DPH:",{"$f":"IF(STAVBA!C33=\"\",STAVBA!C32,STAVBA!C33)","v":21},"%"]
[null,"Výše daně:",{"$f":"C88*C90%","v":1971360.2729830649},"Kč"]
[]
[null,"CELEKM S DPH:",{"$f":"C91+C88","v":11358790.144330993},"Kč"]

{"sheet":"HSV - 1","index":3,"n_rows":116,"n_cols":7,"rows_kept":116,"cut":false,"hidden":false,"merged":[[13,1,15,6],[17,1,20,6],[22,2,22,3],[93,1,95,6],[66,1,68,6],[75,2,75,3],[40,1,42,6],[49,2,49,3],[50,2,50,3],[23,2,24,3],[76,2,77,3],[103,2,103,3],[102,2,102,3],[44,1,47,6],[70,1,73,6],[97,1,100,6]]}
[]
[null,"REKAPITULACE NÁKLADŮ LISTU HSV - 1"]
[]
[]
[null,"CELKEM HSV - 1:",{"$f":"SUM(C6:C9)","v":2014519.9960658092},"Kč"]
[null,"1 - ZEMNÍ PRÁCE:",{"$f":"C37","v":0},"Kč"]
[null,"2 - ZÁKLADY:",{"$f":"C63","v":478657.7340706666},"Kč"]
[null,"3 - SVISLÉ KONSTRUKCE:",{"$f":"C90","v":802223.75728791312},"Kč"]
[null,"4 - VODOROVNÉ KONSTRUKCE:",{"$f":"C116","v":733638.50470722956},"Kč"]
[]
[]
[null,"ZEMNÍ PRÁCE"]
[]
[null,"Při výpočtu pomocí cenového ukazatele jsou na výběr dvě varianty zemních prací – zemní práce u podsklepených objektů nebo z části v terénu zapuštěné objekty a zemní práce u nepodsklepených objektů."]
[]
[]
[]
[null,"Cena u obou variant zhrnuje náklady na sejmutí ornice, výkopové práce, nakládání výkopu, vodorovné a svislé přemístění zeminy, uložení na mezideponii, zpětný zásyp a uložení zeminy na skládce."]
[]
[]
[]
[]
[null,"Výpočet ceny:","Bez ceny"]
[null,"Varianta:","Nepodsklepený objekt"]
[]
[]
[null,"Zastavěná plocha všech podlaží:",{"$f":"STAVBA!$C$18","v":252},"m2"]
[null,"Obestavěný prostor:",{"$f":"STAVBA!$C$17","v":914},"m3"]
[]
[null,"Cenový ukazatel/ZPVP: ",{"$f":"IF(C24=List1!D1,List1!D3,IF('HSV - 1'!C24=List1!D2,List1!D5,0))","v":657.6505804466816},"Kč/m2"]
[null,"Cenový ukazatel/OP: ",{"$f":"IF(C24=List1!D1,List1!D4,IF('HSV - 1'!C24=List1!D2,List1!D6,0))","v":181},"Kč/m3"]
[]
[null,"Cena za ZPVP:",{"$f":"IF(C23=\"Cenový ukazatel\",C27*C30,\"\")","v":""},"Kč","Celková vlastní cena:",null,"Kč"]
[null,"Cena za OP:",{"$f":"IF(C23=\"Cenový ukazatel\",C28*C31,\"\")","v":""},"Kč"]
[null,"Cena průměr:",{"$f":"IF(C23=\"Cenový ukazatel\",(C33+C34)/COUNT(C33:C34),\"\")","v":""},"Kč"]
[]
[null,"Celková cena za zemní práce:",{"$f":"IF(C23=\"Cenový ukazatel\",C35,IF(C23=\"Vlastní cena\",F33,0))","v":0},"Kč"]
[]
[null,"ZÁKLADY"]
[]
[null,"Při výpočtu pomocí cenového ukazatele jsou na výběr dvě varianty základů –  základové pasy z prostého betonu s železobetonovou deskou a základové pasy železobetonové nebo ze ztraceného bednění s železobetonovou deskou."]
[]
[]
[]
[null,"Celková cena u varianty Pasy z prostého betonu zahrnuje beton, bednění, podkladní beton a štěrkopískový podsyp. Celková cena u varianty Pasy z železobetonu nebo ztraceného bednění zahrnuje beton, bednění, výztuž, podkladní beton, štěrkopískový podsyp, případně tvárnice ztraceného bednění. "]
[]
[]
[]
[]
[null,"Výpočet ceny:","Cenový ukazatel"]
[null,"Varianta:","Pasy z železobetonu/ztracené bednění, železobetonová deska"]
[]
[null,"Zastavěná plocha všech podlaží:",{"$f":"STAVBA!$C$18","v":252},"m2"]
[null,"Obestavěný prostor:",{"$f":"STAVBA!$C$17","v":914},"m3"]
[]
[null,"Cenový ukazatel/ZPVP: ",{"$f":"IF(C51=List1!F1,List1!F3,IF('HSV - 1'!C51=List1!F2,List1!F5,0))","v":1895.006974182739},"Kč/m2"]
[null,"Cenový ukazatel/OP: ",{"$f":"IF(C51=List1!F1,List1!F4,IF('HSV - 1'!C51=List1!F2,List1!F6,0))","v":524.91653243685232},"Kč/m3"]
[]
[null,"Cena za ZPVP:",{"$f":"IF(C50=\"Cenový ukazatel\",C53*C56,\"\")","v":477541.75749405025},"Kč","Celková vlastní cena:",null,"Kč"]
[null,"Cena za OP:",{"$f":"IF(C50=\"Cenový ukazatel\",C54*C57,\"\")","v":479773.71064728301},"Kč"]
[null,"Cena průměr:",{"$f":"IF(C50=\"Cenový ukazatel\",(C59+C60)/COUNT(C59:C60),\"\")","v":478657.7340706666},"Kč"]
[]
[null,"Celková cena za základy:",{"$f":"IF(C50=\"Cenový ukazatel\",C61,IF(C50=\"Vlastní cena\",F59,0))","v":478657.7340706666},"Kč"]
[]
[null,"SVISLÉ KONSTRUKCE"]
[]
[null,"Při výpočtu pomocí cenového ukazatele jsou na výběr tři varianty svislých konstrukcí –  nosné stěny Porotherm a příčky pórobeton, nosné stěny železobetonové a příčky Porotherm a poslední variantou jsou nosné stěny Porotherm s příčkami z Porothermu. "]
[]
[]
[]
[null,"U každé z variant je vyjmenovaná kombinace primárního materiálu nosných stěn a příček. Cena všech variant zahrnuje taktéž cenu za SDK stěny a předstěny, přizdívky a železobetonové svislé konstrukce. Tyto materiály se v objektu nachází pouze lokálně. Součástí ceny všech variant jsou náklady na zdivo, bednění, beton a výztuž svislých betonových zdí, atik a sloupů, překlady, přizdívky, obezdívky van, SDK stěny a předstěny."]
[]
[]
[]
[]
[null,"Výpočet ceny:","Cenový ukazatel"]
[null,"Varianta:","N: Porotherm, P: Porotherm"]
[]
[]
[null,"Zastavěná plocha všech podlaží:",{"$f":"STAVBA!$C$18","v":252},"m2"]
[null,"Obestavěný prostor:",{"$f":"STAVBA!$C$17","v":914},"m3"]
[]
[null,"Cenový ukazatel/ZPVP: ",{"$f":"IF(C77=List1!H1,List1!H4,IF('HSV - 1'!C77=List1!H2,List1!H6,IF(C77=List1!H3,List1!H8,0)))","v":3144.6871985921216},"Kč/m2"]
[null,"Cenový ukazatel/OP: ",{"$f":"IF(C77=List1!H1,List1!H5,IF('HSV - 1'!C77=List1!H2,List1!H7,IF(C77=List1!H3,List1!H9,0)))","v":888.38768110570197},"Kč/m3"]
[]
[null,"Cena za ZPVP:",{"$f":"IF(C76=\"Cenový ukazatel\",C80*C83,\"\")","v":792461.17404521466},"Kč","Celková vlastní cena:",null,"Kč"]
[null,"Cena za OP:",{"$f":"IF(C76=\"Cenový ukazatel\",C81*C84,\"\")","v":811986.34053061157},"Kč"]
[null,"Cena průměr:",{"$f":"IF(C76=\"Cenový ukazatel\",(C86+C87)/COUNT(C86:C87),\"\")","v":802223.75728791312},"Kč"]
[]
[null,"Celková cena za svislé kon.:",{"$f":"IF(C76=\"Cenový ukazatel\",C88,IF(C76=\"Vlastní cena\",F86,0))","v":802223.75728791312},"Kč"]
[]
[null,"VODOROVNÉ KONSTRUKCE"]
[]
[null,"Při výpočtu pomocí cenového ukazatele je možná pouze jedna varianta vodorovných konstrukcí –  železobetonová deska."]
[]
[]
[]
[null,"Celková cena za železobetonovou desku zahrnuje náklady na beton, výztuž, bednění a podpěry stropních desek a nosníků, ocelové nosníky a bednění stropu z plechu. Součástí ceny nejsou náklady na železobetonové schodiště."]
[]
[]
[]
[]
[null,"Výpočet ceny:","Cenový ukazatel"]
[null,"Varianta:",{"$f":"List1!J1","v":"Železobetonová deska"}]
[]
[null,"Zastavěná plocha všech podlaží:",{"$f":"STAVBA!$C$18","v":252},"m2"]
[null,"Obestavěný prostor:",{"$f":"STAVBA!$C$17","v":914},"m3"]
[]
[null,"Cenový ukazatel/ZPVP: ",{"$f":"IF(C104=List1!J1,List1!J2,0)","v":2855},"Kč/m2"]
[null,"Cenový ukazatel/OP: ",{"$f":"IF(C104=List1!J1,List1!J3,0)","v":818.18053546439728},"Kč/m3"]
[]
[null,"Cena za ZPVP:",{"$f":"IF(C103=\"Cenový ukazatel\",C106*C109,\"\")","v":719460},"Kč","Celková vlastní cena:",null,"Kč"]
[null,"Cena za OP:",{"$f":"IF(C103=\"Cenový ukazatel\",C107*C110,\"\")","v":747817.00941445911},"Kč"]
[null,"Cena průměr:",{"$f":"IF(C103=\"Cenový ukazatel\",(C112+C113)/2,\"\")","v":733638.50470722956},"Kč"]
[]
[null,"Celková cena za vodorovné kon.:",{"$f":"IF(C103=\"Cenový ukazatel\",C114,IF(C103=\"Vlastní cena\",F112,0))","v":733638.50470722956},"Kč"]

{"sheet":"HSV - 2","index":4,"n_rows":145,"n_cols":7,"rows_kept":145,"cut":false,"hidden":false,"merged":[[122,1,124,6],[126,1,129,6],[131,2,131,3],[104,2,104,3],[24,2,25,3],[51,2,52,3],[78,2,79,3],[105,2,106,3],[50,2,50,3],[68,1,70,6],[72,1,75,6],[77,2,77,3],[95,1,97,6],[99,1,102,6],[14,1,16,6],[18,1,21,6],[23,2,23,3],[41,1,43,6],[45,1,48,6]]}
[]
[null,"REKAPITULACE NÁKLADŮ LISTU HSV - 2"]
[]
[]
[null,"CELKEM HSV - 2:",{"$f":"SUM(C6:C9)","v":1212906.9986469701},"Kč"]
[null,"5 - SCHODIŠTĚ:",{"$f":"C38","v":146466},"Kč"]
[null,"6 - VNITŘNÍ OMÍTKY:",{"$f":"C65","v":218403},"Kč"]
[null,"7 - VNĚJŠÍ ÚPRAVA POVRCHŮ:",{"$f":"C92","v":646535.99864697014},"Kč"]
[null,"8 - HRUBÁ PODLAHA:",{"$f":"C119","v":201502},"Kč"]
[null,"9 - PŘESUN HMOT HSV:",{"$f":"C145","v":556681},"Kč"]
[]
[]
[null,"SCHODIŠTĚ"]
[]
[null,"Při výpočtu pomocí cenového ukazatele jsou na výběr tři varianty schodišť –  železobetonové schodiště s dřevěným obložením a zábradlím, přímé ocelové schodiště s dřevěným obkladem a zábradlím a točité ocelové schodiště s dřevěným schodištěm a zábradlím."]
[]
[]
[]
[null,"Všechny varianty obsahují cenu za nosnou konstrukci schodiště, dřevěný obklad stupňů a zábradlí. Cena za železobetonové schodiště zahrnuje beton, bednění, výztuž a podpěry. "]
[]
[]
[]
[]
[null,"Výpočet ceny:","Vlastní cena"]
[null,"Varianta:","Žb schodiště, dřevěný obklad stupňů, zábradlí"]
[]
[]
[null,"Zastavěná plocha všech podlaží:",{"$f":"STAVBA!$C$18","v":252},"m2"]
[null,"Obestavěný prostor:",{"$f":"STAVBA!$C$17","v":914},"m3"]
[]
[null,"Cenový ukazatel/ZPVP: ",{"$f":"IF(C25=List1!D10,List1!D13,IF(C25=List1!D11,List1!D15,IF(C25=List1!D12,List1!D17,0)))","v":2042},"Kč/m2"]
[null,"Cenový ukazatel/OP: ",{"$f":"IF(C25=List1!D10,List1!D14,IF(C25=List1!D11,List1!D16,IF(C25=List1!D12,List1!D18,0)))","v":558},"Kč/m3"]
[]
[null,"Cena za ZPVP:",{"$f":"IF(C24=\"Cenový ukazatel\",C28*C31,\"\")","v":""},"Kč","Celková vlastní cena:",146466,"Kč"]
[null,"Cena za OP:",{"$f":"IF(C24=\"Cenový ukazatel\",C29*C32,\"\")","v":""},"Kč"]
[null,"Cena průměr:",{"$f":"IF(C24=\"Cenový ukazatel\",(C34+C35)/COUNT(C34:C35),\"\")","v":""},"Kč"]
[]
[null,"Celková cena za schodiště:",{"$f":"IF(C24=\"Cenový ukazatel\",C36,IF(C24=\"Vlastní cena\",F34,0))","v":146466},"Kč"]
[]
[null,"VNITŘNÍ OMÍTKY"]
[]
[null,"Při výpočtu pomocí cenového ukazatele je možná pouze jedna varianta vnitřních omítek –  vápenocemenotová a sádorvá omítka. "]
[]
[]
[]
[null,"Cena varianty zahrnuje materiál a provedení omítek stěn, stropů a pomocné lešení. "]
[]
[]
[]
[]
[null,"Výpočet ceny:","Cenový ukazatel"]
[null,"Varianta:",{"$f":"List1!F10","v":"Vápenocementová a sádrová omítka"}]
[]
[]
[null,"Zastavěná plocha všech podlaží:",{"$f":"STAVBA!$C$18","v":252},"m2"]
[null,"Obestavěný prostor:",{"$f":"STAVBA!$C$17","v":914},"m3"]
[]
[null,"Cenový ukazatel/ZPVP: ",{"$f":"IF(C52=List1!F10,List1!F11,0)","v":852},"Kč/m2"]
[null,"Cenový ukazatel/OP: ",{"$f":"IF(C52=List1!F10,List1!F12,0)","v":243},"Kč/m3"]
[]
[null,"Cena za ZPVP:",{"$f":"IF(C51=\"Cenový ukazatel\",C55*C58,\"\")","v":214704},"Kč","Celková vlastní cena:",null,"Kč"]
[null,"Cena za OP:",{"$f":"IF(C51=\"Cenový ukazatel\",C56*C59,\"\")","v":222102},"Kč"]
[null,"Cena průměr:",{"$f":"IF(C51=\"Cenový ukazatel\",(C61+C62)/COUNT(C61:C62),\"\")","v":218403},"Kč"]
[]
[null,"Celková cena za vnitřní úpravu povrchů:",{"$f":"IF(C51=\"Cenový ukazatel\",C63,IF(C51=\"Vlastní cena\",F61,0))","v":218403},"Kč"]
[]
[null,"VNĚJŠÍ ÚPRAVA POVRCHŮ"]
[]
[null,"Při výpočtu pomocí cenového ukazatele jsou na výběr dvě varianty vnější úpravy povrchů –  kontaktní zateplovací systém s omítkou nebo pouze fasádní omítka."]
[]
[]
[]
[null,"Varianta kontaktního zateplovacího systému zahrnuje cenu za tepelnou izolaci, sklovláknité pletivo, rohové profily s tkaninou, omítkové začišťovací profily, hmoždinky a fasádní omítku. Varianta s fasádní omítkou zahrnuje pouze cenu za fasádní omítku. Obě varianty taktéž zahrnuji cenu za fasádní lešení."]
[]
[]
[]
[]
[null,"Výpočet ceny:","Cenový ukazatel"]
[null,"Varianta:","Kontaktní zateplovací systém, omítka"]
[]
[]
[null,"Zastavěná plocha všech podlaží:",{"$f":"STAVBA!$C$18","v":252},"m2"]
[null,"Obestavěný prostor:",{"$f":"STAVBA!$C$17","v":914},"m3"]
[]
[null,"Cenový ukazatel/ZPVP: ",{"$f":"IF(C79=List1!H10,List1!H12,IF(C79=List1!H11,List1!H14,0))","v":2555.1992123750342},"Kč/m2"]
[null,"Cenový ukazatel/OP: ",{"$f":"IF(C79=List1!H10,List1!H13,IF(C79=List1!H11,List1!H15,0))","v":710.24266496217911},"Kč/m3"]
[]
[null,"Cena za ZPVP:",{"$f":"IF(C78=\"Cenový ukazatel\",C82*C85,\"\")","v":643910.20151850861},"Kč","Celková vlastní cena:",null,"Kč"]
[null,"Cena za OP:",{"$f":"IF(C78=\"Cenový ukazatel\",C83*C86,\"\")","v":649161.79577543167},"Kč"]
[null,"Cena průměr:",{"$f":"IF(C78=\"Cenový ukazatel\",(C88+C89)/COUNT(C88:C89),\"\")","v":646535.99864697014},"Kč"]
[]
[null,"Celková cena za vnější úpravu povrchů:",{"$f":"IF(C78=\"Cenový ukazatel\",C90,IF(C78=\"Vlastní cena\",F88,0))","v":646535.99864697014},"Kč"]
[]
[null,"HRUBÁ PODLAHA"]
[]
[null,"Při výpočtu pomocí cenového ukazatele jsou na výběr dvě varianty hrubých podlah –  betonová mazanina vyztužená kari sítí nebo skelným vláknem s tepelnou izolací a betonová mazanina s tepelnou izolací. "]
[]
[]
[]
[null,"Cena obou variant zahrnuje cenu za betonovou mazaninu jakékoliv výšky, lokálně cementový potěr, PE folie, obvodová dilatace a tepelné izolace. Jedna z variant navíc obsahuje výztuž ze skelného vlákna nebo kari sítě. "]
[]
[]
[]
[]
[null,"Výpočet ceny:","Cenový ukazatel"]
[null,"Varianta:","Betonová mazanina, kari síť/skelné vlákno a tepelná izolace"]
[]
[]
[null,"Zastavěná plocha všech podlaží:",{"$f":"STAVBA!$C$18","v":252},"m2"]
[null,"Obestavěný prostor:",{"$f":"STAVBA!$C$17","v":914},"m3"]
[]
[null,"Cenový ukazatel/ZPVP: ",{"$f":"IF(C106=List1!J10,List1!J12,IF(C106=List1!J11,List1!J14,0))","v":736},"Kč/m2"]
[null,"Cenový ukazatel/OP: ",{"$f":"IF(C106=List1!J10,List1!J13,IF(C106=List1!J11,List1!J15,0))","v":238},"Kč/m3"]
[]
[null,"Cena za ZPVP:",{"$f":"IF(C105=\"Cenový ukazatel\",C109*C112,\"\")","v":185472},"Kč","Celková vlastní cena:",null,"Kč"]
[null,"Cena za OP:",{"$f":"IF(C105=\"Cenový ukazatel\",C110*C113,\"\")","v":217532},"Kč"]
[null,"Cena průměr:",{"$f":"IF(C105=\"Cenový ukazatel\",(C115+C116)/COUNT(C115:C116),\"\")","v":201502},"Kč"]
[]
[null,"Celková cena za hrubou podlahu:",{"$f":"IF(C105=\"Cenový ukazatel\",C117,IF(C105=\"Vlastní cena\",F115,0))","v":201502},"Kč"]
[]
[null,"PŘESUN HMOT HSV"]
[]
[null,"Přesun hmot má při výpočtu pomocí cenového ukazatele pouze jednu variantu."]
[]
[]
[]
[null,"Cena zahrnuje vnitrostaveništní dopravu materiálu, polotovarů a výrobků."]
[]
[]
[]
[]
[null,"Výpočet ceny:","Cenový ukazatel"]
[null,"Varianta:",{"$f":"List1!L10","v":"Přesun hmot HSV"}]
[]
[null,"Zastavěná plocha všech podlaží:",{"$f":"STAVBA!$C$18","v":252},"m2"]
[null,"Obestavěný prostor:",{"$f":"STAVBA!$C$17","v":914},"m3"]
[]
[null,"Cenový ukazatel/ZPVP: ",{"$f":"IF(C133=List1!L10,List1!L12,0)","v":2173},"Kč/m2"]
[null,"Cenový ukazatel/OP: ",{"$f":"IF(C133=List1!L10,List1!L13,0)","v":619},"Kč/m3"]
[]
[null,"Cena za ZPVP:",{"$f":"IF(C132=\"Cenový ukazatel\",C135*C138,\"\")","v":547596},"Kč","Celková vlastní cena:",null,"Kč"]
[null,"Cena za OP:",{"$f":"IF(C132=\"Cenový ukazatel\",C136*C139,\"\")","v":565766},"Kč"]
[null,"Cena průměr:",{"$f":"IF(C132=\"Cenový ukazatel\",(C141+C142)/COUNT(C141:C142),\"\")","v":556681},"Kč"]
[]
[null,"Celková cena za zpřesun hmot HSV:",{"$f":"IF(C132=\"Cenový ukazatel\",C143,IF(C132=\"Vlastní cena\",F141,0))","v":556681},"Kč"]

{"sheet":"PSV - 1","index":5,"n_rows":131,"n_cols":7,"rows_kept":131,"cut":false,"hidden":false,"merged":[[74,2,75,3],[14,1,16,6],[18,1,21,6],[23,2,23,3],[24,2,25,3],[41,1,43,6],[73,2,73,3],[45,1,48,6],[50,2,50,3],[64,1,66,6],[68,1,71,6],[51,2,52,3],[108,1,110,6],[112,1,115,6],[117,2,117,3],[86,1,88,6],[90,1,93,6],[95,2,95,3],[96,2,97,3]]}
[]
[null,"REKAPITULACE NÁKLADŮ LISTU PSV - 1"]
[]
[]
[null,"CELKEM PSV - 1:",{"$f":"SUM(C6:C9)","v":1021398},"Kč"]
[null,"10 - IZOLACE PROTI VODĚ ZÁKLADŮ:",{"$f":"C38","v":115322},"Kč"]
[null,"11 - PLOCHÁ STŘECHA:",{"$f":"C61","v":906076},"Kč"]
[null,"12 - ŠIKMÁ STŘECHA:",{"$f":"C83","v":0},"Kč"]
[null,"13 - SDK PODHLED PODKROVÍ ŠIKMÝCH STŘECH:",{"$f":"C105","v":0},"Kč"]
[null,"14 - SDK PODHLED",{"$f":"C131","v":100828},"Kč"]
[]
[]
[null,"IZOLACE PROTI VODĚ ZÁKLADŮ"]
[]
[null,"Při výpočtu pomocí cenového ukazatele jsou na výběr dvě varianty izolací proti vodě základů –  izolace objektu podsklepeného nebo z části v terénu zapuštěném a nebo izolace nepodsklepeného objektu."]
[]
[]
[]
[null,"Cena za izolace proti vodě základů zahrnuje náklady na veškeré izolace základů a přesun hmot."]
[]
[]
[]
[]
[null,"Výpočet ceny:","Cenový ukazatel"]
[null,"Varianta:","Nepodsklepený objekt"]
[]
[]
[null,"Zastavěná plocha všech podlaží:",{"$f":"STAVBA!$C$18","v":252},"m2"]
[null,"Obestavěný prostor:",{"$f":"STAVBA!$C$17","v":914},"m3"]
[]
[null,"Cenový ukazatel/ZPVP: ",{"$f":"IF(C25=List1!D20,List1!D22,IF(C25=List1!D21,List1!D24,0))","v":451},"Kč/m2"]
[null,"Cenový ukazatel/OP: ",{"$f":"IF(C25=List1!D20,List1!D23,IF(C25=List1!D21,List1!D25,0))","v":128},"Kč/m3"]
[]
[null,"Cena za ZPVP:",{"$f":"IF(C24=\"Cenový ukazatel\",C28*C31,\"\")","v":113652},"Kč","Celková vlastní cena:",null,"Kč"]
[null,"Cena za OP:",{"$f":"IF(C24=\"Cenový ukazatel\",C29*C32,\"\")","v":116992},"Kč"]
[null,"Cena průměr:",{"$f":"IF(C24=\"Cenový ukazatel\",(C34+C35)/COUNT(C34:C35),\"\")","v":115322},"Kč"]
[]
[null,"Celková cena za izolace proti vodě:",{"$f":"IF(C24=\"Cenový ukazatel\",C36,IF(C24=\"Vlastní cena\",F34,0))","v":115322},"Kč"]
[]
[null,"PLOCHÁ STŘECHA"]
[]
[null,"Při výpočtu pomocí cenového ukazatele jsou na výběr dvě varianty plochých střech – plochá střecha s fóliovou krytinou nebo plochá střecha s vrstvou substrátu pro extenzivní zeleň."]
[]
[]
[]
[null,"Cena obou variant obsahuje tepelné izolace, mazaninu nebo polystyren beton, hydroizolace, klempířské prvky, výlezy na střechu, OSB bednění a přesun hmot. Varianta střechy s fóliovou krytinou zahrnuje dále cenu za krytinu a lokální násyp z kačírku na krytině. Varianta střechy s vrstvou substrátu zahrnuje navíc cenu za substrát a lokální násyp z kačírku."]
[]
[]
[]
[]
[null,"Výpočet ceny:","Cenový ukazatel"]
[null,"Varianta:","Plochá střecha se substrátem pro extenzivní střechu"]
[]
[]
[null,"Zastavěná plocha ploché střechy:",{"$f":"STAVBA!$C$19","v":146},"m2"]
[]
[null,"Cenový ukazatel/ZPPS",{"$f":"IF(C52=List1!F20,List1!F22,IF(C52=List1!F21,List1!F24,0))","v":6206},"Kč/m2"]
[]
[null,"Cena za ZPPS:",{"$f":"IF(C51=\"Cenový ukazatel\",C55*C57,\"\")","v":906076},"Kč","Celková vlastní cena:",null,"Kč"]
[]
[null,"Celková cena za plochou střechu:",{"$f":"IF(C51=\"Cenový ukazatel\",C59,IF(C51=\"Vlastní cena\",F59,0))","v":906076},"Kč"]
[]
[null,"ŠIKMÁ STŘECHA"]
[]
[null,"Při výpočtu pomocí cenového ukazatele je na výběr pouze jedna varianta šikmých střech. "]
[]
[]
[]
[null,"Cena zahrnuje tepelnou izolaci, hydroizolaci, OSB desky, latě, hranoly, krovy, ocelovou konstrukci pro krov, klempířské prvky, stoupací plošiny a přesun hmot. "]
[]
[]
[]
[]
[null,"Výpočet ceny:","Bez ceny"]
[null,"Varianta:",{"$f":"List1!H20","v":"Šikmá střecha"}]
[]
[null,"Zastavěná plocha šikmé střechy:",{"$f":"STAVBA!$C$20","v":0},"m2"]
[]
[null,"Cenový ukazatel/ZPŠS: ",{"$f":"IF(C75=List1!H20,List1!H22,0)","v":8916},"Kč/m2"]
[]
[null,"Cena za ZPŠS:",{"$f":"IF(C74=\"Cenový ukazatel\",C77*C79,\"\")","v":""},"Kč","Celková vlastní cena:",null,"Kč"]
[]
[null,"Celková cena za šikmou střechu:",{"$f":"IF(C74=\"Cenový ukazatel\",C81,IF(C74=\"Vlastní cena\",F81,0))","v":0},"Kč"]
[]
[null,"SDK PODHLED PODKROVÍ ŠIKMÝCH STŘECH"]
[]
[null,"Při výpočtu pomocí cenového ukazatele je na výběr pouze jedna varianta SDK podkrovního podhledu. "]
[]
[]
[]
[null,"Cena obsahuje SDK desky, ocelové profily, pomocný materiál pro zabudování a přesun hmot."]
[]
[]
[]
[]
[null,"Výpočet ceny:","Bez ceny"]
[null,"Varianta:",{"$f":"List1!J20","v":"Podkrovní podhled SDK"}]
[]
[null,"Zastavěná plocha šikmé střechy:",{"$f":"STAVBA!$C$20","v":0},"m2"]
[]
[null,"Cenový ukazatel/ZPŠS: ",{"$f":"IF(C97=List1!J20,List1!J22,0)","v":1115},"Kč/m2"]
[]
[null,"Cena za ZPŠS:",{"$f":"IF(C96=\"Cenový ukazatel\",C99*C101,\"\")","v":""},"Kč","Celková vlastní cena:",null,"Kč"]
[]
[null,"Celková cena za šikmou střechu:",{"$f":"IF(C96=\"Cenový ukazatel\",C103,IF(C96=\"Vlastní cena\",F103,0))","v":0},"Kč"]
[]
[null,"SDK PODHLED "]
[]
[null,"Při výpočtu pomocí cenového ukazatele je na výběr pouze jedna varianta SDK podhledů."]
[]
[]
[]
[null,"Součástí ceny je SDK deska, tepelná izolace, nosný profil, SDK čelo a přesun hmot."]
[]
[]
[]
[]
[null,"Výpočet ceny:","Cenový ukazatel"]
[null,"Varianta:",{"$f":"List1!D27","v":"Podhled SDK"}]
[]
[null,"Zastavěná plocha všech podlaží:",{"$f":"STAVBA!$C$18","v":252},"m2"]
[null,"Obestavěný prostor:",{"$f":"STAVBA!$C$17","v":914},"m3"]
[]
[null,"Cenový ukazatel/ZPVP: ",{"$f":"IF(C119=List1!D27,List1!D28,0)","v":394},"Kč/m2"]
[null,"Cenový ukazatel/OP: ",{"$f":"IF(C119=List1!D27,List1!D29,0)","v":112},"Kč/m3"]
[]
[null,"Cena za ZPVP:",{"$f":"IF(C118=\"Cenový ukazatel\",C121*C124,\"\")","v":99288},"Kč","Celková vlastní cena:",null,"Kč"]
[null,"Cena za OP:",{"$f":"IF(C118=\"Cenový ukazatel\",C122*C125,\"\")","v":102368},"Kč"]
[null,"Cena průměr:",{"$f":"IF(C118=\"Cenový ukazatel\",(C127+C128)/COUNT(C127:C128),\"\")","v":100828},"Kč"]
[]
[null,"Celková cena za zpřesun hmot HSV:",{"$f":"IF(C118=\"Cenový ukazatel\",C129,IF(C118=\"Vlastní cena\",F127,0))","v":100828},"Kč"]

{"sheet":"PSV - 2","index":6,"n_rows":149,"n_cols":7,"rows_kept":149,"cut":false,"hidden":false,"merged":[[140,2,140,3],[139,2,139,3],[47,2,47,3],[118,2,118,3],[112,1,115,6],[117,2,117,3],[130,1,132,6],[134,1,137,6],[86,1,88,6],[90,1,93,6],[95,2,95,3],[108,1,110,6],[69,2,70,3],[96,2,96,3],[15,1,17,6],[19,1,22,6],[24,2,24,3],[25,2,26,3],[37,1,39,6],[41,1,44,6],[46,2,46,3],[59,1,61,6],[63,1,66,6],[68,2,68,3]]}
[]
[null,"REKAPITULACE NÁKLADŮ LISTU PSV - 2"]
[]
[]
[null,"CELKEM PSV - 2:",{"$f":"SUM(C6:C11)","v":1140266},"Kč"]
[null,"15 - DŘEVĚNÉ TERASY NA STŘECHÁCH:",{"$f":"C34","v":0},"Kč"]
[null,"16 - VNĚJŠÍ VÝPLNĚ OTVORŮ:",{"$f":"C56","v":650944},"Kč"]
[null,"17 - VNĚJŠÍ PŘEDOKENNÍ ŽALUZIE:",{"$f":"C83","v":0},"Kč"]
[null,"18 - VSTUPNÍ DVEŘE:",{"$f":"C105","v":233274},"Kč"]
[null,"19 - GARÁŽOVÁ VRATA:",{"$f":"C127","v":50858},"Kč"]
[null,"20 - VNITŘNÍ VÝPLNĚ OTVORŮ:",{"$f":"C149","v":205190},"Kč"]
[]
[]
[null,"DŘEVĚNÉ TERASY NA STŘECHÁCH"]
[]
[null,"Při výpočtu pomocí cenového ukazatele je na výběr pouze jedna varianta dřevěných teras na střeše."]
[]
[]
[]
[null,"Cena zahrnuje dřevěnou podlahu terasy, nátěr, nosný rošt a přesun hmot."]
[]
[]
[]
[]
[null,"Výpočet ceny:","Bez ceny"]
[null,"Varianta:","Dřevěná terasa na střeše"]
[]
[null,"Plocha teras:",{"$f":"STAVBA!$C$21","v":0},"m2"]
[]
[null,"Cenový ukazatel/m2 terasy: ",{"$f":"IF(C26=List1!F27,List1!F28,0)","v":4068},"Kč/m2"]
[]
[null,"Cena za plochu terasy:",{"$f":"IF(C25=\"Cenový ukazatel\",C28*C30,\"\")","v":""},"Kč","Celková vlastní cena:",null,"Kč"]
[]
[null,"Celková cena za dřevěné terasy:",{"$f":"IF(C25=\"Cenový ukazatel\",C32,IF(C25=\"Vlastní cena\",F32,0))","v":0},"Kč"]
[]
[null,"VNĚJŠÍ VÝPLNĚ OTVORŮ"]
[]
[null,"Při výpočtu pomocí cenového ukazatele je na výběr ze tří variant vnějších výplní otvorů - dřevěné, hliníkové  nebo dřevohliníkové a plastové."]
[]
[]
[]
[null,"Jednotlivé varianty se liší použitým materiálem na vnější výplně otvorů, cena zahrnuje dodávku a montáž výplní včetně parapetů."]
[]
[]
[]
[]
[null,"Výpočet ceny:","Cenový ukazatel"]
[null,"Varianta:","Hliníkové/dřevohliníkové"]
[]
[null,"Plocha vnějších výplní otvorů:",{"$f":"STAVBA!$C$25","v":44.8},"m2"]
[]
[null,"Cenový ukazatel/PVVO",{"$f":"IF(C48=List1!H27,List1!H30,IF(C48=List1!H28,List1!H31,IF(C48=List1!H29,List1!H32,0)))","v":14530},"Kč/m2"]
[]
[null,"Cena za PVVO:",{"$f":"IF(C47=\"Cenový ukazatel\",C50*C52,\"\")","v":650944},"Kč","Celková vlastní cena:",null,"Kč"]
[]
[null,"Celková cena za vnější výplně otvorů:",{"$f":"IF(C47=\"Cenový ukazatel\",C54,IF(C47=\"Vlastní cena\",F54,0))","v":650944},"Kč"]
[]
[null,"VNĚJŠÍ PŘEDOKENNÍ ŽALUZIE"]
[]
[null,"Při výpočtu pomocí cenového ukazatele je na výběr pouze jedna varianta vnějších předokenních žaluzií - hliníkové vnější předokenní žaluzie."]
[]
[]
[]
[null,"Cena zahrnuje dodávku a montáž vnějších hliníkových předokenních žaluzií."]
[]
[]
[]
[]
[null,"Výpočet ceny:","Bez ceny"]
[null,"Varianta:",{"$f":"List1!J27","v":"Vnější hliníkové předokenní žaluzie"}]
[]
[]
[null,"Zastavěná plocha všech podlaží:",{"$f":"STAVBA!$C$18","v":252},"m2"]
[null,"Obestavěný prostor:",{"$f":"STAVBA!$C$17","v":914},"m3"]
[]
[null,"Cenový ukazatel/ZPVP: ",{"$f":"IF(C70=List1!J27,List1!J30,0)","v":516},"Kč/m2"]
[null,"Cenový ukazatel/OP: ",{"$f":"IF(C70=List1!J27,List1!J31,0)","v":142},"Kč/m3"]
[]
[null,"Cena za ZPVP:",{"$f":"IF(C69=\"Cenový ukazatel\",C73*C76,\"\")","v":""},"Kč","Celková vlastní cena:",null,"Kč"]
[null,"Cena za OP:",{"$f":"IF(C69=\"Cenový ukazatel\",C74*C77,\"\")","v":""},"Kč"]
[null,"Cena průměr:",{"$f":"IF(C69=\"Cenový ukazatel\",(C79+C80)/COUNT(C79:C80),\"\")","v":""},"Kč"]
[]
[null,"Celková cena za předokenní žaluzie:",{"$f":"IF(C69=\"Cenový ukazatel\",C81,IF(C69=\"Vlastní cena\",F79,0))","v":0},"Kč"]
[]
[null,"VSTUPNÍ DVEŘE"]
[]
[null,"Při výpočtu pomocí cenového ukazatele je na výběr ze tří variant vstupních dveří - dřevěné, hliníkové  a plastové."]
[]
[]
[]
[null,"Cena zahnruje dodávku a montáž vstupních dveří."]
[]
[]
[]
[]
[null,"Výpočet ceny:","Cenový ukazatel"]
[null,"Varianta:","Vstupní dveře - hliníkové"]
[]
[null,"Počet vstupních dveří:",{"$f":"STAVBA!$C$24","v":2},"ks"]
[]
[null,"Cenový ukazatel/ks",{"$f":"IF(C97=List1!L27,List1!L30,IF(C97=List1!L28,List1!L31,List1!L32))","v":116637},"Kč/ks"]
[]
[null,"Cena za vstupní dveře:",{"$f":"IF(C96=\"Cenový ukazatel\",C99*C101,\"\")","v":233274},"Kč","Celková vlastní cena:",null,"Kč"]
[]
[null,"Celková cena za vstupní dveře:",{"$f":"IF(C96=\"Cenový ukazatel\",C103,IF(C96=\"Vlastní cena\",F103,0))","v":233274},"Kč"]
[]
[null,"GARÁŽOVÉ VRATA"]
[]
[null,"Při výpočtu pomocí cenového ukazatele je na výběr ze dvou variant garážových dveří - velká průmyslová vrata a standardní garážová vrata."]
[]
[]
[]
[null,"Součástí ceny za garážová vrata je dodávka a montáž garážových vrat, sekční pohon a dálkové ovládání."]
[]
[]
[]
[]
[null,"Výpočet ceny:","Cenový ukazatel"]
[null,"Varianta:","Standardní garážová vrata"]
[]
[null,"Počet garážových vrat:",{"$f":"STAVBA!$C$26","v":1},"ks"]
[]
[null,"Cenový ukazatel/ks",{"$f":"IF(C119=List1!P27,List1!P29,IF(C119=List1!P28,List1!P30,0))","v":50858},"Kč/ks"]
[]
[null,"Cena za garážové vrata:",{"$f":"IF(C118=\"Cenový ukazatel\",C121*C123,\"\")","v":50858},"Kč","Celková vlastní cena:",null,"Kč"]
[]
[null,"Celková cena za garážové vrata:",{"$f":"IF(C118=\"Cenový ukazatel\",C125,IF(C118=\"Vlastní cena\",F125,0))","v":50858},"Kč"]
[]
[null,"VNITŘNÍ VÝPLNĚ OTVORŮ"]
[]
[null,"Při výpočtu pomocí cenového ukazatele je na výběr ze dvou variant vnitřních výplní otvorů - standardní a nadstandardní vnitřní dveře."]
[]
[]
[]
[null,"Standardní vnitřní dveře zahrnují dodávku a montáž dveřního křídla plného lakovaného, včetně obložkové zárubně, prahu a kování. Nadstandardní vnitřní dveře zahrnují dodávku a montáž dveřního křídla plného se skrytou zárubní, včetně kování a prahu, nebo dřevěné posuvné dveře do pouzdra, včetně pouzdra, prahu a kování a nebo dveřních křídel masivních dýhovaných do masivní obložkové zárubně, včetně kování a prahu."]
[]
[]
[]
[]
[null,"Výpočet ceny:","Cenový ukazatel"]
[null,"Varianta:","Vnitřní dveře standardní"]
[]
[null,"Počet vnitřních dveří:",{"$f":"STAVBA!$C$23","v":10},"ks"]
[]
[null,"Cenový ukazatel/ks",{"$f":"IF(C141=List1!T27,List1!T29,IF(C141=List1!T28,List1!T30,0))","v":20519},"Kč/ks"]
[]
[null,"Cena za vnitřní výplně:",{"$f":"IF(C140=\"Cenový ukazatel\",C143*C145,\"\")","v":205190},"Kč","Celková vlastní cena:",null,"Kč"]
[]
[null,"Celková cena za vnitřní výplně:",{"$f":"IF(C140=\"Cenový ukazatel\",C147,IF(C140=\"Vlastní cena\",F147,0))","v":205190},"Kč"]

{"sheet":"PSV - 3","index":7,"n_rows":190,"n_cols":7,"rows_kept":190,"cut":false,"hidden":false,"merged":[[16,1,18,6],[20,1,23,6],[25,2,25,3],[26,2,27,3],[39,1,41,6],[43,1,46,6],[48,2,48,3],[49,2,50,3],[65,1,67,6],[69,1,72,6],[101,2,102,3],[114,1,116,6],[118,1,121,6],[74,2,74,3],[75,2,76,3],[91,1,93,6],[95,1,98,6],[100,2,100,3],[123,2,123,3],[124,2,125,3],[140,1,142,6],[144,1,147,6],[149,2,149,3],[150,2,151,3],[167,1,169,6],[171,1,174,6],[176,2,176,3],[177,2,178,3]]}
[]
[null,"REKAPITULACE NÁKLADŮ LISTU PSV - 3"]
[]
[]
[null,"CELKEM PSV - 3:",{"$f":"SUM(C6:C12)","v":469703.82257521554},"Kč"]
[null,"21 - PODLAHY Z KERAMICKÉ DLAŽBY:",{"$f":"C36","v":115588},"Kč"]
[null,"22 - PODLAHY DŘEVĚNÉ:",{"$f":"C62","v":205564},"Kč"]
[null,"23 - PODLAHY LITÉ:",{"$f":"C88","v":31115},"Kč"]
[null,"24 - KERAMICKÉ OBKLADY:",{"$f":"C111","v":80681.822575215556},"Kč"]
[null,"25 - FASÁDNÍ CIHELNÝ OBKLAD:",{"$f":"C137","v":0},"Kč"]
[null,"26 - OBKLAD ALUCOBOND:",{"$f":"C164","v":0},"Kč"]
[null,"27 - MALBY",{"$f":"C190","v":36755},"Kč"]
[]
[]
[null,"PODLAHY Z KERAMICKÉ DLAŽBY"]
[]
[null,"Při výpočtu pomocí cenového ukazatele je na výběr ze dvou variant keramických dlažeb - standardní a nadstandardní podlahy z keramické dlažby."]
[]
[]
[]
[null,"Cena zahrnuje dodávku a montáž keramické dlažby a soklů, včetně potřebného materiálu pro zabudování, lokální hydroizolační stěrku pod dlažbu a přesun hmot. Standardní podlaha z keramické dlažby - formát keramické dlažby 60x60 cm, 40x40 cm, 30 x 30 cm a jakákoliv kombinace těchto rozměrů (60 x 30 cm apod.). Nadstandardní podlaha z keramické dlažby - jedna strana použité dlaždice je větší než 90 cm. Průměrná plocha keramické dlažby na koupelnu je 31 m2."]
[]
[]
[]
[]
[null,"Výpočet ceny:","Cenový ukazatel"]
[null,"Varianta:","Podlahy z keramických dlaždic - standard"]
[]
[]
[null,"Počet koupelen:",{"$f":"STAVBA!$C$22","v":2},"ks"]
[]
[null,"Cenový ukazatel/ks",{"$f":"IF(C27=List1!D33,List1!D35,IF(C27=List1!D34,List1!D36,0))","v":57794},"Kč/ks"]
[]
[null,"Cena za keramickou dlažbu:",{"$f":"IF(C26=\"Cenový ukazatel\",C32*C30,\"\")","v":115588},"Kč","Celková vlastní cena:",null,"Kč"]
[]
[null,"Celková cena za keramickou dlažbu:",{"$f":"IF(C26=\"Cenový ukazatel\",C34,IF(C26=\"Vlastní cena\",F32,0))","v":115588},"Kč"]
[]
[null,"PODLAHY DŘEVĚNÉ"]
[]
[null,"Při výpočtu pomocí cenového ukazatele je na výběr pouze jedna varianta dřevěných podlah."]
[]
[]
[]
[null,"Součástí ceny jsou podlahy z dřevěných lamel nebo vlysů, sokly, lepidlo a přesun hmot."]
[]
[]
[]
[]
[null,"Výpočet ceny:","Cenový ukazatel"]
[null,"Varianta:",{"$f":"List1!F33","v":"Dřevěné podlahy"}]
[]
[null,"Zastavěná plocha všech podlaží:",{"$f":"STAVBA!$C$18","v":252},"m2"]
[null,"Obestavěný prostor:",{"$f":"STAVBA!$C$17","v":914},"m3"]
[]
[null,"Cenový ukazatel/ZPVP: ",{"$f":"IF(C50=List1!F33,List1!F34,0)","v":790},"Kč/m2"]
[null,"Cenový ukazatel/OP: ",{"$f":"IF(C50=List1!F33,List1!F35,0)","v":232},"Kč/m3"]
[]
[null,"Cena za ZPVP:",{"$f":"IF(C49=\"Cenový ukazatel\",C52*C55,\"\")","v":199080},"Kč","Celková vlastní cena:",null,"Kč"]
[null,"Cena za OP:",{"$f":"IF(C49=\"Cenový ukazatel\",C53*C56,\"\")","v":212048},"Kč"]
[null,"Cena průměr:",{"$f":"IF(C49=\"Cenový ukazatel\",(C58+C59)/COUNT(C58:C59),\"\")","v":205564},"Kč"]
[]
[null,"Celková cena za dřevěné podlahy:",{"$f":"IF(C49=\"Cenový ukazatel\",C60,IF(C49=\"Vlastní cena\",F58,0))","v":205564},"Kč"]
[]
[null,"PODLAHY LITÉ"]
[]
[null,"Při výpočtu pomocí cenového ukazatele je na výběr pouze jedna varianta litých podlah."]
[]
[]
[]
[null,"Součástí ceny je litá stěrka nebo epoxidová stěrka nebo polyuretanová stěrka a přesun hmot. "]
[]
[]
[]
[]
[null,"Výpočet ceny:","Cenový ukazatel"]
[null,"Varianta:",{"$f":"List1!H33","v":"Lité podlahy"}]
[]
[null,"Zastavěná plocha všech podlaží:",{"$f":"STAVBA!$C$18","v":252},"m2"]
[null,"Obestavěný prostor:",{"$f":"STAVBA!$C$17","v":914},"m3"]
[]
[null,"Cenový ukazatel/ZPVP: ",{"$f":"IF(C76=List1!H33,List1!H34,0)","v":120},"Kč/m2"]
[null,"Cenový ukazatel/OP: ",{"$f":"IF(C76=List1!H33,List1!H35,0)","v":35},"Kč/m3"]
[]
[null,"Cena za ZPVP:",{"$f":"IF(C75=\"Cenový ukazatel\",C78*C81,\"\")","v":30240},"Kč","Celková vlastní cena:",null,"Kč"]
[null,"Cena za OP:",{"$f":"IF(C75=\"Cenový ukazatel\",C79*C82,\"\")","v":31990},"Kč"]
[null,"Cena průměr:",{"$f":"IF(C75=\"Cenový ukazatel\",(C84+C85)/COUNT(C84:C85),\"\")","v":31115},"Kč"]
[]
[null,"Celková cena za lité podlahy:",{"$f":"IF(C75=\"Cenový ukazatel\",C86,IF(C75=\"Vlastní cena\",F84,0))","v":31115},"Kč"]
[]
[null,"KERAMICKÉ OBKLADY"]
[]
[null,"Při výpočtu pomocí cenového ukazatele je na výběr ze dvou variant keramických obkladů - standardní a nadstandardní keramické obklady."]
[]
[]
[]
[null,"Cena zahrnuje dodávku a montáž keramických obkladů, včetně potřebného materiálu pro zabudování, lokální hydroizolační stěrku pod obklad a přesun hmot. Standardní keramický obklad - formát keramického obkladu 60x60 cm, 40x40 cm, 30 x 30 cm a jakákoliv kombinace těchto rozměrů (60 x 30 cm apod.). Nadstandardní keramický obklad - jedna strana použitého obkladu je větší než 90 cm. Průměrná plocha keramické obkladu na koupelnu je 24 m2."]
[]
[]
[]
[]
[null,"Výpočet ceny:","Cenový ukazatel"]
[null,"Varianta:","Keramické obklady - standard"]
[]
[]
[null,"Počet koupelen:",{"$f":"STAVBA!$C$22","v":2},"ks"]
[]
[null,"Cenový ukazatel/ks",{"$f":"IF(C102=List1!J33,List1!J35,IF(C102=List1!J34,List1!J36,0))","v":40340.911287607778},"Kč/ks"]
[]
[null,"Cena za keramické obklady:",{"$f":"IF(C101=\"Cenový ukazatel\",C105*C107,\"\")","v":80681.822575215556},"Kč","Celková vlastní cena:",null,"Kč"]
[]
[null,"Celková cena za keramické obklady:",{"$f":"IF(C101=\"Cenový ukazatel\",C109,IF(C101=\"Vlastní cena\",F109,0))","v":80681.822575215556},"Kč"]
[]
[null,"FASÁDNÍ CIHELNÝ OBKLAD"]
[]
[null,"Při výpočtu pomocí cenového ukazatele je na výběr pouze jedna varianta fasádního cihelného obkladu."]
[]
[]
[]
[null,"Cena zahrnuje dodávku a montáž cihelného obkladu včetně pomocného materiálu a přesunu hmot."]
[]
[]
[]
[]
[null,"Výpočet ceny:","Bez ceny"]
[null,"Varianta:",{"$f":"List1!L33","v":"Cihelný oklad"}]
[]
[null,"Zastavěná plocha všech podlaží:",{"$f":"STAVBA!$C$18","v":252},"m2"]
[null,"Obestavěný prostor:",{"$f":"STAVBA!$C$17","v":914},"m3"]
[]
[null,"Cenový ukazatel/ZPVP: ",{"$f":"IF(C125=List1!L33,List1!L34,0)","v":1478},"Kč/m2"]
[null,"Cenový ukazatel/OP: ",{"$f":"IF(C125=List1!L33,List1!L35,0)","v":392},"Kč/m3"]
[]
[null,"Cena za ZPVP:",{"$f":"IF(C124=\"Cenový ukazatel\",C127*C130,\"\")","v":""},"Kč","Celková vlastní cena:",null,"Kč"]
[null,"Cena za OP:",{"$f":"IF(C124=\"Cenový ukazatel\",C128*C131,\"\")","v":""},"Kč"]
[null,"Cena průměr:",{"$f":"IF(C124=\"Cenový ukazatel\",(C133+C134)/COUNT(C133:C134),\"\")","v":""},"Kč"]
[]
[null,"Celková cena za cihelný obklad:",{"$f":"IF(C124=\"Cenový ukazatel\",C135,IF(C124=\"Vlastní cena\",F133,0))","v":0},"Kč"]
[]
[null,"OBKLAD ALUCOBOND"]
[]
[null,"Při výpočtu pomocí cenového ukazatele je na výběr pouze jedna varianta Alucobond obkladu."]
[]
[]
[]
[null,"Cena zahrnuje dodávku a montáž Alucobond obkladu na fasádu včetně přesunu hmot."]
[]
[]
[]
[]
[null,"Výpočet ceny:","Bez ceny"]
[null,"Varianta:",{"$f":"List1!O33","v":"Venkovní obklad Alucobond"}]
[]
[]
[null,"Zastavěná plocha všech podlaží:",{"$f":"STAVBA!$C$18","v":252},"m2"]
[null,"Obestavěný prostor:",{"$f":"STAVBA!$C$17","v":914},"m3"]
[]
[null,"Cenový ukazatel/ZPVP: ",{"$f":"IF(C151=List1!O33,List1!O34,0)","v":1961},"Kč/m2"]
[null,"Cenový ukazatel/OP: ",{"$f":"IF(C151=List1!O33,List1!O35,0)","v":632},"Kč/m3"]
[]
[null,"Cena za ZPVP:",{"$f":"IF(C150=\"Cenový ukazatel\",C154*C157,\"\")","v":""},"Kč","Celková vlastní cena:",null,"Kč"]
[null,"Cena za OP:",{"$f":"IF(C150=\"Cenový ukazatel\",C155*C158,\"\")","v":""},"Kč"]
[null,"Cena průměr:",{"$f":"IF(C150=\"Cenový ukazatel\",(C160+C161)/COUNT(C160:C161),\"\")","v":""},"Kč"]
[]
[null,"Celková cena za obklady Alucobond:",{"$f":"IF(C150=\"Cenový ukazatel\",C162,IF(C150=\"Vlastní cena\",F160,0))","v":0},"Kč"]
[]
[null,"MALBY"]
[]
[null,"Při výpočtu pomocí cenového ukazatele je na výběr pouze jedna varianta maleb - malby dvojnásobné bíle."]
[]
[]
[]
[null,"Součástí ceny je provedení dvojnásobné bílé malby."]
[]
[]
[]
[]
[null,"Výpočet ceny:","Cenový ukazatel"]
[null,"Varianta:",{"$f":"List1!T33","v":"Dvojnásobná bílá malba"}]
[]
[null,"Zastavěná plocha všech podlaží:",{"$f":"STAVBA!$C$18","v":252},"m2"]
[null,"Obestavěný prostor:",{"$f":"STAVBA!$C$17","v":914},"m3"]
[]
[null,"Cenový ukazatel/ZPVP: ",{"$f":"IF(C178=List1!T33,List1!T34,0)","v":143},"Kč/m2"]
[null,"Cenový ukazatel/OP: ",{"$f":"IF(C178=List1!T33,List1!T35,0)","v":41},"Kč/m3"]
[]
[null,"Cena za ZPVP:",{"$f":"IF(C177=\"Cenový ukazatel\",C180*C183,\"\")","v":36036},"Kč","Celková vlastní cena:",null,"Kč"]
[null,"Cena za OP:",{"$f":"IF(C177=\"Cenový ukazatel\",C181*C184,\"\")","v":37474},"Kč"]
[null,"Cena průměr:",{"$f":"IF(C177=\"Cenový ukazatel\",(C186+C187)/COUNT(C186:C187),\"\")","v":36755},"Kč"]
[]
[null,"Celková cena za malby:",{"$f":"IF(C177=\"Cenový ukazatel\",C188,IF(C177=\"Vlastní cena\",F186,0))","v":36755},"Kč"]

{"sheet":"M","index":8,"n_rows":214,"n_cols":7,"rows_kept":214,"cut":false,"hidden":false,"merged":[[17,1,19,6],[21,1,24,6],[26,2,26,3],[27,2,27,3],[43,1,45,6],[36,4,37,4],[47,1,50,6],[113,1,115,6],[117,1,120,6],[122,2,122,3],[123,2,123,3],[91,1,93,6],[95,1,98,6],[100,2,100,3],[52,2,52,3],[53,2,53,3],[69,1,71,6],[73,1,76,6],[78,2,78,3],[79,2,79,3],[191,1,193,6],[195,1,198,6],[200,2,200,3],[201,2,201,3],[101,2,102,3],[139,1,141,6],[143,1,146,6],[148,2,148,3],[149,2,149,3],[175,2,175,3],[174,2,174,3],[169,1,172,6],[165,1,167,6]]}
[]
[null,"REKAPITULACE NÁKLADŮ LISTU M"]
[]
[]
[null,"CELKEM M:",{"$f":"SUM(C6:C11)","v":1571664.1669933305},"Kč"]
[null,"28 - SILNOPROUD:",{"$f":"C40","v":308549},"Kč"]
[null,"29 - SLABOPROUD:",{"$f":"C66","v":273716},"Kč"]
[null,"30 - ZDRAVOTECHNICKÉ INSTALACE:",{"$f":"C88","v":93194},"Kč"]
[null,"31 - ZAŘIZOVACÍ PŘEDMĚTY ZTI:",{"$f":"C110","v":168520},"Kč"]
[null,"32 - ÚSTŘEDNÍ TOPENÍ:",{"$f":"C136","v":459357.16699333047},"Kč"]
[null,"33 - ROZVODY TOPENÍ A OTOPNÁ TĚLESA:",{"$f":"C162","v":268328},"Kč"]
[null,"34 - VZDUCHOTECHNIKA:",{"$f":"C188","v":53628},"Kč"]
[null,"35 - CHLAZENÍ:",{"$f":"C214","v":217647},"Kč"]
[]
[]
[null,"SILNOPROUD"]
[]
[null,"Při výpočtu pomocí cenového ukazatele je na výběr pouze jedna varianta silnoproudu."]
[]
[]
[]
[null,"Cena zahrnuje silnoproudé koncové elektrické prvky, rozvaděče, kabely, trasy, uzemnění a hromosvody. Svítidla nejsou součástí ceny vypočtené pomocí cenového ukazatele. Pro přípočet ceny za dodávku a montáž svítidel vyplňtě do pole u Celkové ceny za dodávku a montáž svítidel celkovou vlastní cenu za svítidla."]
[]
[]
[]
[]
[null,"Výpočet ceny:","Cenový ukazatel"]
[null,"Varianta:","Silnoproud"]
[]
[null,"Zastavěná plocha všech podlaží:",{"$f":"STAVBA!$C$18","v":252},"m2"]
[null,"Obestavěný prostor:",{"$f":"STAVBA!$C$17","v":914},"m3"]
[]
[null,"Cenový ukazatel/ZPVP: ",{"$f":"IF(C28=List1!D37,List1!D38,0)","v":1212},"Kč/m2"]
[null,"Cenový ukazatel/OP: ",{"$f":"IF(C28=List1!D37,List1!D39,0)","v":341},"Kč/m3"]
[]
[null,"Cena za ZPVP:",{"$f":"IF(C27=\"Cenový ukazatel\",C30*C33,\"\")","v":305424},"Kč","Celková vlastní cena:",null,"Kč"]
[null,"Cena za OP:",{"$f":"IF(C27=\"Cenový ukazatel\",C31*C34,\"\")","v":311674},"Kč","Celková cena za dodávku a montáž svítidel:"]
[null,"Cena průměr:",{"$f":"IF(C27=\"Cenový ukazatel\",(C36+C37)/COUNT(C36:C37),\"\")","v":308549},"Kč",null,null,"Kč"]
[]
[null,"Celková cena za silnoproud:",{"$f":"IF(C27=\"Cenový ukazatel\",C38,IF(C27=\"Vlastní cena\",F36,0))+F38","v":308549},"Kč"]
[]
[null,"SLABOPROUD"]
[]
[null,"Při výpočtu pomocí cenového ukazatele je na výběr pouze jedna varianta slaboproudu."]
[]
[]
[]
[null,"Součástí ceny za slaboproud jsou rozvaděče, CCTV, domácí telefon, anténa, EZS a EPS, data a slaboproudé rozvody."]
[]
[]
[]
[]
[null,"Výpočet ceny:","Cenový ukazatel"]
[null,"Varianta:","Slaboproud"]
[]
[null,"Zastavěná plocha všech podlaží:",{"$f":"STAVBA!$C$18","v":252},"m2"]
[null,"Obestavěný prostor:",{"$f":"STAVBA!$C$17","v":914},"m3"]
[]
[null,"Cenový ukazatel/ZPVP: ",{"$f":"IF(C54=List1!E37,List1!E38,0)","v":1077},"Kč/m2"]
[null,"Cenový ukazatel/OP: ",{"$f":"IF(C54=List1!E37,List1!E39,0)","v":302},"Kč/m3"]
[]
[null,"Cena za ZPVP:",{"$f":"IF(C53=\"Cenový ukazatel\",C56*C59,\"\")","v":271404},"Kč","Celková vlastní cena:",null,"Kč"]
[null,"Cena za OP:",{"$f":"IF(C53=\"Cenový ukazatel\",C57*C60,\"\")","v":276028},"Kč"]
[null,"Cena průměr:",{"$f":"IF(C53=\"Cenový ukazatel\",(C62+C63)/COUNT(C62:C63),\"\")","v":273716},"Kč"]
[]
[null,"Celková cena za slaboproud:",{"$f":"IF(C53=\"Cenový ukazatel\",C64,IF(C53=\"Vlastní cena\",F62,0))","v":273716},"Kč"]
[]
[null,"ZDRAVOTECHNICKÉ INSTALACE"]
[]
[null,"Při výpočtu pomocí cenového ukazatele je na výběr ze dvou variant zdravotechnických instalací - vnitřní vodovod a kanalizace bez vnitřního plynovodu a nebo vnitřní vodovod a kanalizace s vnitřním plynovodem."]
[]
[]
[]
[null,"Součástí ceny nejsou zařizovací předměty, součástí ceny je vnitřní plynovod, vnitřní kanalizace dešťová a splašková, případně vnitřní plynovod."]
[]
[]
[]
[]
[null,"Výpočet ceny:","Cenový ukazatel"]
[null,"Varianta:","ZTI - bez plynu"]
[]
[null,"Počet koupelen:",{"$f":"STAVBA!$C$22","v":2},"ks"]
[]
[null,"Cenový ukazatel/ks: ",{"$f":"IF(C80=List1!F37,List1!F39,List1!F40)","v":46597},"Kč/ks"]
[]
[null,"Cena za ZTI:",{"$f":"IF(C79=\"Cenový ukazatel\",C82*C84,\"\")","v":93194},"Kč","Celková vlastní cena:",null,"Kč"]
[]
[null,"Celková cena za ZTI:",{"$f":"IF(C79=\"Cenový ukazatel\",C86,IF(C79=\"Vlastní cena\",F86,0))","v":93194},"Kč"]
[]
[null,"ZAŘIZOVACÍ PŘEDMĚTY ZTI"]
[]
[null,"Při výpočtu pomocí cenového ukazatele je na výběr ze dvou variant zařizovacích předmětů - standardní a nadstandardní."]
[]
[]
[]
[null,"Součástí ceny je dodávka a montáž zařizovacích předmětů. Varianty se liší pořizovací cenou předmětů."]
[]
[]
[]
[]
[null,"Výpočet ceny:","Cenový ukazatel"]
[null,"Varianta:","Standardní zařizovací předměty"]
[]
[null,"Počet koupelen:",{"$f":"STAVBA!$C$22","v":2},"ks"]
[]
[null,"Cenový ukazatel/ks: ",{"$f":"IF(C102=List1!H37,List1!H39,IF(C102=List1!H38,List1!H40,0))","v":84260},"Kč/ks"]
[]
[null,"Cena za zařizovací předměty:",{"$f":"IF(C101=\"Cenový ukazatel\",C104*C106,\"\")","v":168520},"Kč","Celková vlastní cena:",null,"Kč"]
[]
[null,"Celková cena za zařizovací předměty:",{"$f":"IF(C101=\"Cenový ukazatel\",C108,IF(C101=\"Vlastní cena\",F108,0))","v":168520},"Kč"]
[]
[null,"ÚSTŘEDNÍ TOPENÍ"]
[]
[null,"Při výpočtu pomocí cenového ukazatele je na výběr ze dvou variant ústředního vytápění - plynový kondenzační kotel a tepelné čerpadlo."]
[]
[]
[]
[null,"Obě varianty ústředního vytápění nezahrnují cenu za otopná tělesa, rozvody topení a rozvody podlahového topení."]
[]
[]
[]
[]
[null,"Výpočet ceny:","Cenový ukazatel"]
[null,"Varianta:","Tepelné čerpadlo"]
[]
[null,"Zastavěná plocha všech podlaží:",{"$f":"STAVBA!$C$18","v":252},"m2"]
[null,"Obestavěný prostor:",{"$f":"STAVBA!$C$17","v":914},"m3"]
[]
[null,"Cenový ukazatel/ZPVP: ",{"$f":"IF(C124=List1!J37,List1!J39,IF(C124=List1!J38,List1!J41))","v":1799.5568808994478},"Kč/m2"]
[null,"Cenový ukazatel/OP: ",{"$f":"IF(C124=List1!J37,List1!J40,IF(C124=List1!J38,List1!J42))","v":509},"Kč/m3"]
[]
[null,"Cena za ZPVP:",{"$f":"IF(C123=\"Cenový ukazatel\",C126*C129,\"\")","v":453488.33398666087},"Kč","Celková vlastní cena:",null,"Kč"]
[null,"Cena za OP:",{"$f":"IF(C123=\"Cenový ukazatel\",C127*C130,\"\")","v":465226},"Kč"]
[null,"Cena průměr:",{"$f":"IF(C123=\"Cenový ukazatel\",(C132+C133)/COUNT(C132:C133),\"\")","v":459357.16699333047},"Kč"]
[]
[null,"Celková cena za ústřední topení:",{"$f":"IF(C123=\"Cenový ukazatel\",C134,IF(C123=\"Vlastní cena\",F132,0))","v":459357.16699333047},"Kč"]
[]
[null,"ROZVODY TOPENÍ A OTOPNÁ TĚLESA"]
[]
[null,"Při výpočtu pomocí cenového ukazatele je na výběr ze dvou variant rozvodů topení a otopných těles - vytápění pomocí otopných těles a vytápění podlahovým vytápěním."]
[]
[]
[]
[null,"Součástí ceny podlahového vytápění jsou lokální otopná tělesa, koupelnové žebříky a jejich rozvody."]
[]
[]
[]
[]
[null,"Výpočet ceny:","Cenový ukazatel"]
[null,"Varianta:","Podlahové vytápění"]
[]
[null,"Zastavěná plocha všech podlaží:",{"$f":"STAVBA!$C$18","v":252},"m2"]
[null,"Obestavěný prostor:",{"$f":"STAVBA!$C$17","v":914},"m3"]
[]
[null,"Cenový ukazatel/ZPVP: ",{"$f":"IF(C150=List1!L37,List1!L39,IF(C150=List1!L38,List1!L41,0))","v":1056},"Kč/m2"]
[null,"Cenový ukazatel/OP: ",{"$f":"IF(C150=List1!L37,List1!L40,IF(C150=List1!L38,List1!L42,0))","v":296},"Kč/m3"]
[]
[null,"Cena za ZPVP:",{"$f":"IF(C149=\"Cenový ukazatel\",C152*C155,\"\")","v":266112},"Kč","Celková vlastní cena:",null,"Kč"]
[null,"Cena za OP:",{"$f":"IF(C149=\"Cenový ukazatel\",C153*C156,\"\")","v":270544},"Kč"]
[null,"Cena průměr:",{"$f":"IF(C149=\"Cenový ukazatel\",(C158+C159)/COUNT(C158:C159),\"\")","v":268328},"Kč"]
[]
[null,"Celková cena za rozvody t. a otopná tělesa:",{"$f":"IF(C149=\"Cenový ukazatel\",C160,IF(C149=\"Vlastní cena\",F158,0))","v":268328},"Kč"]
[]
[null,"VZDUCHOTECHNIKA"]
[]
[null,"Při výpočtu pomocí cenového ukazatele je na výběr pouze jedna varianta vzduchotechniky."]
[]
[]
[]
[null,"Součástí ceny je veškeré trubní vedení, technické vybavení a zařízení. Cena za chlazení není součástí tohoto oddílu."]
[]
[]
[]
[]
[null,"Výpočet ceny:","Cenový ukazatel"]
[null,"Varianta:",{"$f":"List1!O37","v":"Vzduchotechnika"}]
[]
[null,"Zastavěná plocha všech podlaží:",{"$f":"STAVBA!$C$18","v":252},"m2"]
[null,"Obestavěný prostor:",{"$f":"STAVBA!$C$17","v":914},"m3"]
[]
[null,"Cenový ukazatel/ZPVP: ",{"$f":"IF(C176=List1!O37,List1!O39,0)","v":208},"Kč/m2"]
[null,"Cenový ukazatel/OP: ",{"$f":"IF(C176=List1!O37,List1!O40,0)","v":60},"Kč/m3"]
[]
[null,"Cena za ZPVP:",{"$f":"IF(C175=\"Cenový ukazatel\",C178*C181,\"\")","v":52416},"Kč","Celková vlastní cena:",null,"Kč"]
[null,"Cena za OP:",{"$f":"IF(C175=\"Cenový ukazatel\",C179*C182,\"\")","v":54840},"Kč"]
[null,"Cena průměr:",{"$f":"IF(C175=\"Cenový ukazatel\",(C184+C185)/COUNT(C184:C185),\"\")","v":53628},"Kč"]
[]
[null,"Celková cena za vzduchotechniku:",{"$f":"IF(C175=\"Cenový ukazatel\",C186,IF(C175=\"Vlastní cena\",F184,0))","v":53628},"Kč"]
[]
[null,"CHLAZENÍ"]
[]
[null,"Při výpočtu pomocí cenového ukazatele je na výběr pouze jedna varianta chlazení."]
[]
[]
[]
[null,"Součástí ceny je dodávka a montáž veškerého vedení, technického vybavení a zařízení."]
[]
[]
[]
[]
[null,"Výpočet ceny:","Cenový ukazatel"]
[null,"Varianta:",{"$f":"List1!R37","v":"Chlazení"}]
[]
[null,"Zastavěná plocha všech podlaží:",{"$f":"STAVBA!$C$18","v":252},"m2"]
[null,"Obestavěný prostor:",{"$f":"STAVBA!$C$17","v":914},"m3"]
[]
[null,"Cenový ukazatel/ZPVP: ",{"$f":"IF(C202=List1!R37,List1!R39,0)","v":846},"Kč/m2"]
[null,"Cenový ukazatel/OP: ",{"$f":"IF(C202=List1!R37,List1!R40,0)","v":243},"Kč/m3"]
[]
[null,"Cena za ZPVP:",{"$f":"IF(C201=\"Cenový ukazatel\",C204*C207,\"\")","v":213192},"Kč","Celková vlastní cena:",null,"Kč"]
[null,"Cena za OP:",{"$f":"IF(C201=\"Cenový ukazatel\",C205*C208,\"\")","v":222102},"Kč"]
[null,"Cena průměr:",{"$f":"IF(C201=\"Cenový ukazatel\",(C210+C211)/COUNT(C210:C211),\"\")","v":217647},"Kč"]
[]
[null,"Celková cena za chlazení:",{"$f":"IF(C201=\"Cenový ukazatel\",C212,IF(C201=\"Vlastní cena\",F210,0))","v":217647},"Kč"]

{"sheet":"VLASTNÍ CENA","index":9,"n_rows":11,"n_cols":6,"rows_kept":11,"cut":false,"hidden":false,"merged":[[5,2,8,4]]}
[]
[null,"CELKOVÁ VLASTNÍ CENA ZA DALŠÍ ČÁSTI NEOBSÁHLÉ V NÁSTROJI"]
[]
[]
[null,null,"POPIS:"]
[]
[]
[]
[]
[]
[null,null,null,"CELKOVÁ VLASTNÍ CENA :",null,"Kč"]

{"sheet":"Nápověda","index":10,"n_rows":25,"n_cols":5,"rows_kept":25,"cut":false,"hidden":false,"merged":[[18,0,23,3],[18,4,23,7],[24,0,29,3],[0,4,5,7],[0,0,5,3],[6,4,11,7],[6,0,11,3],[12,0,17,3],[12,4,17,7]]}
["Obestavěný prostor dle ISO 73 4055. Celkový obestavěný prostor = objem základů + objem podzemní částí objektu +  objem nadzemní části objektu + objem zastřešení. Objekt je vymezen vnějšími plochami konstrukcí.",null,null,null,"Pro zjednodušenní, průměrná plocha teras na střechách rodinných domů je 50 m2."]
[]
[]
[]
[]
[]
["Zastavěná plocha  dle ISO 734 055. Plocha ohraničená pravoúhlým průmětem vnějšího líce obvodových svislých konstrukcí všech nadzemních podlaží. Zastavěná plocha všech podlaží je součet jednotlivých zastavěných ploch všech podlaží objektu.",null,null,null,"Pro zjednodušenní, průměrná plocha vnějších výplní rodinných domů je 95 m2."]
[]
[]
[]
[]
[]
["Zastavěná plocha šikmé střechy. Plocha ohraničená pravoúhlým průmětěm střešní konstrukce do vodorovné roviny. ",null,null,null,"Zastavěná plocha ploché střechy. Plocha ohraničená pravoúhlým průmětěm vnějšího líce obvodových konstrukcí střechy do vodorovné roviny."]
[]
[]
[]
[]
[]
["Náklady na umístění stavby. Náklady na zařízení staveniště (buňky, sklady, oplocení apod.), náklady spojené s územnímy vlivy (ztížené výrobní podmínky, extrémní klimatické podmínky, ztížené dopravní podmínky apod.), náklady na dopravu zaměstnanců zhotovitele apod.",null,null,null,"Kompletační činností vznikají náklady např. na zajištění zařízení staveniště pro subdodavatele, koordinace práce subdodavatelů, zpracovnání dokumentace skutečného provedení stavby apod."]
[]
[]
[]
[]
[]
["Rezerva slouží pro nepředvídatelné náklady."]

{"sheet":"List1","index":11,"n_rows":42,"n_cols":20,"rows_kept":42,"cut":false,"hidden":true,"merged":[]}
["Výpočet ceny","Cenový ukazatel","Zemní práce","Podsklepený objekt, objekt v terénu","Základy","Pasy z prostého betonu, železobetonová deska","Svislé","N: Porotherm, P: Pórobeton","vodorovné","Železobetonová deska"]
[null,"Vlastní cena",null,"Nepodsklepený objekt",null,"Pasy z železobetonu/ztracené bednění, železobetonová deska",null,"N: Železobeton, P: Porotherm",null,2855]
[null,"Bez ceny","POD",2789.2377321379504,"pros",1063.3374613003095,null,"N: Porotherm, P: Porotherm",null,818.18053546439728]
[null,null,"POD",802.7880316579076,"pros",342.72448392328317,"PP",1972.2227399915023]
[null,null,"NEPOD",657.6505804466816,"žb",1895.006974182739,"PP",538.80780973483661]
["DPH",15,"NEPOD",181,"žb",524.91653243685232,"ŽP",3496]
[null,21,null,null,null,null,"ŽP",1127]
["kompl. činnost",0.8,null,null,null,null,"PP",3144.6871985921216]
[null,0.9,null,null,null,null,"PP",888.38768110570197]
[null,1,"Schodiště","Žb schodiště, dřevěný obklad stupňů, zábradlí","vnitřní úprava","Vápenocementová a sádrová omítka","Vnější úprava","Kontaktní zateplovací systém, omítka","Hrubá podlaha","Betonová mazanina a tepelná izolace","PŘESUN","Přesun hmot HSV"]
[null,1.1000000000000001,null,"Ocelové schodiště přímé, dřevěný obklad stupňů, zábradlí",null,852,null,"Fasádní omítka",null,"Betonová mazanina, kari síť/skelné vlákno a tepelná izolace"]
[null,1.2,null,"Ocelové schodiště točité, dřevěný obklad stupňů, zábradlí",null,243,"KZS",2555.1992123750342,"BTI",625,null,2173]
[null,1.3,"žb",2042,null,null,"KZS",710.24266496217911,"BTI",164,null,619]
[null,1.4,"žb",558,null,null,"O",1529.5865000979015,"PKT",736]
[null,1.5,"op",657,null,null,"O",494.90587744688742,"PKT",238]
[null,1.6,"op",185]
[null,1.7,"ot",1683]
[null,1.8,"ot",543]
[null,1.9]
[null,2,"Izolace proti vodě","Podsklepený objek, objekt v terénu","Plochá střecha","Plochá střecha","šikmá střecha","Šikmá střecha","SDK podkroví","Podkrovní podhled SDK"]
[null,2.1,null,"Nepodsklepený objekt",null,"Plochá střecha se substrátem pro extenzivní střechu"]
[null,2.2000000000000002,"POD",569,"PS",5991,null,8916,null,1115]
[null,2.2999999999999998,"POD",162]
[null,2.4,"NEPOD",451,"PES",6206]
[null,2.5,"NEPOD",128]
["REZERVA",5]
[null,5.5,"SDK podhled","Podhled SDK","terasa","Dřevěná terasa na střeše","Vnější výplně","Dřevěné","Vnější žaluzie","Vnější hliníkové předokenní žaluzie","Vstupní","Vstupní dveře - hliníkové",null,null,"Garážové","Standardní garážová vrata",null,null,"vnitřní výplně","Vnitřní dveře standardní"]
[null,6,null,394,"průměrná",4068,null,"Hliníkové/dřevohliníkové",null,null,null,"Vstupní dveře - dřevěné",null,null,null,"Velká garážová vrata",null,null,null,"Vnitřní dveře nadstandardní"]
[null,6.5,null,112,null,null,null,"Plastové",null,null,null,"Vstupní dveře - plastové",null,null,null,50858,null,null,null,20519]
[null,7,null,null,null,null,"d",7820,null,516,null,116637,null,null,null,178183,null,null,null,33065]
[null,null,null,null,null,null,"h",14530,null,142,null,72311]
[null,null,null,null,null,null,"p",5680,null,null,null,40709]
[null,null,"Keramické dlažby","Podlahy z keramických dlaždic - standard","Dřevěné","Dřevěné podlahy","Lité podlahy","Lité podlahy",null,"Keramické obklady - standard",null,"Cihelný oklad",null,null,"Venkovní obklad Alucobond",null,null,null,"malby","Dvojnásobná bílá malba"]
[null,null,null,"Podlahy z keramických dlaždic - nadstandard",null,790,null,120,null,"Keramické obklady - nadstandard",null,1478,null,null,1961,null,null,null,null,143]
[null,null,null,57794,null,232,null,35,null,40340.911287607778,null,392,null,null,632,null,null,null,null,41]
[null,null,null,85399,null,null,null,null,null,71673.003103133262]
[null,null,null,"Silnoproud","Slaboproud","ZTI - s plynem","zp","Standardní zařizovací předměty","ÚT","Kondenzační plynový kotel","ot","Radiátory",null,"vzt","Vzduchotechnika",null,null,"Chlazení"]
[null,null,null,1212,1077,"ZTI - bez plynu",null,"Nadstandardní zařizovací předměty",null,"Tepelné čerpadlo",null,"Podlahové vytápění"]
[null,null,null,341,302,131849,null,84260,null,1140,null,1025,null,null,208,null,null,846]
[null,null,null,null,null,46597,null,132135,null,311,null,280,null,null,60,null,null,243]
[null,null,null,null,null,null,null,null,null,1799.5568808994478,null,1056]
[null,null,null,null,null,null,null,null,null,509,null,296]